[Event "Titled Tuesday Blitz August 08 Early 2023"]
[White "Paravyan, David"]
[Black "Bharath Subramaniyam H"]
[WhiteFideId "4194985"]
[BlackFideId "46634827"]
[WhiteElo "3026"]
[BlackElo "2834"]
[Result "1-0"]
[Round "8"]
[TimeControl "180+1"]
[Date "2023.08.08"]
[WhiteClock "0:01:19"]
[BlackClock "0:00:05"]
[Board "15"]

1. e4 {[%clk 0:03:00]}  e5 {[%clk 0:02:59]} 2. Nf3 {[%clk 0:03:01]}  Nc6 {[%clk 0:02:59]} 3. Nc3 {[%clk 0:03:01]}  Nf6 {[%clk 0:02:58]} 4. d4 {[%clk 0:03:02]}  exd4 {[%clk 0:02:58]} 5. Nxd4 {[%clk 0:03:03]}  Bb4 {[%clk 0:02:58]} 6. Nxc6 {[%clk 0:03:03]}  bxc6 {[%clk 0:02:56]} 7. Bd3 {[%clk 0:03:04]}  O-O {[%clk 0:02:55]} 8. O-O {[%clk 0:03:04]}  d5 {[%clk 0:02:50]} 9. exd5 {[%clk 0:03:05]}  cxd5 {[%clk 0:02:51]} 10. h3 {[%clk 0:03:05]}  c6 {[%clk 0:02:47]} 11. Bf4 {[%clk 0:03:04]}  h6 {[%clk 0:02:44]} 12. Qf3 {[%clk 0:03:04]}  Bd6 {[%clk 0:02:42]} 13. Rfe1 {[%clk 0:03:03]}  Be6 {[%clk 0:02:39]} 14. b3 {[%clk 0:03:02]}  Qc7 {[%clk 0:02:33]} 15. Ne2 {[%clk 0:03:00]}  Rfe8 {[%clk 0:02:29]} 16. Qg3 {[%clk 0:02:57]}  Bxf4 {[%clk 0:02:27]} 17. Nxf4 {[%clk 0:02:58]}  Qd6 {[%clk 0:02:13]} 18. Re3 {[%clk 0:02:53]}  Bd7 {[%clk 0:01:59]} 19. Nh5 {[%clk 0:02:45]}  Qxg3 {[%clk 0:01:57]} 20. Nxf6+ {[%clk 0:02:45]}  gxf6 {[%clk 0:01:58]} 21. Rxg3+ {[%clk 0:02:45]}  Kf8 {[%clk 0:01:59]} 22. Rf3 {[%clk 0:02:45]}  Kg7 {[%clk 0:01:59]} 23. Rf4 {[%clk 0:02:46]}  c5 {[%clk 0:01:55]} 24. Rd1 {[%clk 0:02:45]}  Re5 {[%clk 0:01:55]} 25. b4 {[%clk 0:02:40]}  Rc8 {[%clk 0:01:47]} 26. bxc5 {[%clk 0:02:39]}  Rxc5 {[%clk 0:01:48]} 27. Rb1 {[%clk 0:02:21]}  Ra5 {[%clk 0:01:47]} 28. Rb7 {[%clk 0:02:22]}  Be6 {[%clk 0:01:47]} 29. a4 {[%clk 0:02:21]}  Re1+ {[%clk 0:01:47]} 30. Kh2 {[%clk 0:02:21]}  a6 {[%clk 0:01:43]} 31. Ra7 {[%clk 0:02:18]}  Ra1 {[%clk 0:01:31]} 32. Rxa6 {[%clk 0:02:16]}  Rxa6 {[%clk 0:01:31]} 33. Bxa6 {[%clk 0:02:17]}  Bd7 {[%clk 0:01:32]} 34. Bb5 {[%clk 0:02:10]}  Bxb5 {[%clk 0:01:31]} 35. axb5 {[%clk 0:02:10]}  Rb1 {[%clk 0:01:32]} 36. Rf5 {[%clk 0:02:11]}  Rxb5 {[%clk 0:01:30]} 37. c4 {[%clk 0:02:11]}  Rb2 {[%clk 0:01:28]} 38. cxd5 {[%clk 0:02:09]}  Rb6 {[%clk 0:01:22]} 39. g4 {[%clk 0:02:06]}  Kf8 {[%clk 0:01:22]} 40. Kg3 {[%clk 0:02:06]}  Ke7 {[%clk 0:01:23]} 41. Kh4 {[%clk 0:02:07]}  Kf8 {[%clk 0:01:13]} 42. Kh5 {[%clk 0:02:06]}  Kg7 {[%clk 0:01:13]} 43. Rf3 {[%clk 0:02:01]}  Rb2 {[%clk 0:01:14]} 44. Rd3 {[%clk 0:01:59]}  Kf8 {[%clk 0:01:09]} 45. d6 {[%clk 0:01:59]}  Ke8 {[%clk 0:01:10]} 46. d7+ {[%clk 0:02:00]}  Kd8 {[%clk 0:01:10]} 47. f4 {[%clk 0:01:59]}  f5 {[%clk 0:01:01]} 48. gxf5 {[%clk 0:01:55]}  Rb6 {[%clk 0:01:00]} 49. Rd5 {[%clk 0:01:44]}  Rf6 {[%clk 0:00:58]} 50. Kg4 {[%clk 0:01:41]}  Ra6 {[%clk 0:00:58]} 51. h4 {[%clk 0:01:40]}  Rb6 {[%clk 0:00:57]} 52. f6 {[%clk 0:01:28]}  Rxf6 {[%clk 0:00:56]} 53. Rf5 {[%clk 0:01:28]}  h5+ {[%clk 0:00:17]} 54. Kg5 {[%clk 0:01:24]}  Rxf5+ {[%clk 0:00:13]} 55. Kxf5 {[%clk 0:01:25]}  Kxd7 {[%clk 0:00:14]} 56. Kf6 {[%clk 0:01:23]}  Ke8 {[%clk 0:00:13]} 57. Kg7 {[%clk 0:01:17]}  Ke7 {[%clk 0:00:08]} 58. f5 {[%clk 0:01:17]}  f6 {[%clk 0:00:07]} 59. Kg6 {[%clk 0:01:17]}  Ke8 {[%clk 0:00:08]} 60. Kxf6 {[%clk 0:01:17]}  Kf8 {[%clk 0:00:07]} 61. Kg6 {[%clk 0:01:17]}  Kg8 {[%clk 0:00:07]} 62. Kxh5 {[%clk 0:01:18]}  Kf7 {[%clk 0:00:05]} 63. Kg5 {[%clk 0:01:19]} 1-0


[Site "https://www.chess.com"]

[Event "Titled Tuesday Blitz August 08 Early 2023"]
[White "Kazakouski, Valery"]
[Black "Rasulov, Vugar"]
[WhiteFideId "13507443"]
[BlackFideId "13402390"]
[WhiteElo "2901"]
[BlackElo "2833"]
[Result "0-1"]
[Round "8"]
[TimeControl "180+1"]
[Date "2023.08.08"]
[WhiteClock "0:00:26"]
[BlackClock "0:01:34"]
[Board "16"]

1. Nf3 {[%clk 0:03:00]}  Nf6 {[%clk 0:03:00]} 2. c4 {[%clk 0:03:01]}  e6 {[%clk 0:03:00]} 3. g3 {[%clk 0:03:01]}  d5 {[%clk 0:03:01]} 4. b3 {[%clk 0:03:02]}  g6 {[%clk 0:02:57]} 5. Bb2 {[%clk 0:03:01]}  Bg7 {[%clk 0:02:57]} 6. Bg2 {[%clk 0:03:02]}  O-O {[%clk 0:02:58]} 7. O-O {[%clk 0:03:02]}  c5 {[%clk 0:02:57]} 8. cxd5 {[%clk 0:02:58]}  exd5 {[%clk 0:02:58]} 9. d4 {[%clk 0:02:58]}  Ne4 {[%clk 0:02:58]} 10. Qc1 {[%clk 0:02:56]}  cxd4 {[%clk 0:02:51]} 11. Bxd4 {[%clk 0:02:53]}  Bxd4 {[%clk 0:02:49]} 12. Nxd4 {[%clk 0:02:54]}  Qf6 {[%clk 0:02:46]} 13. Qe3 {[%clk 0:02:27]}  Nc6 {[%clk 0:02:37]} 14. Rd1 {[%clk 0:02:28]}  Re8 {[%clk 0:02:32]} 15. Nc3 {[%clk 0:02:24]}  Nxc3 {[%clk 0:02:17]} 16. Qxe8+ {[%clk 0:02:03]}  Kg7 {[%clk 0:02:17]} 17. Nxc6 {[%clk 0:01:51]}  Nxd1 {[%clk 0:02:15]} 18. Rxd1 {[%clk 0:01:48]}  bxc6 {[%clk 0:02:15]} 19. Rc1 {[%clk 0:01:45]}  Bb7 {[%clk 0:02:05]} 20. Qd7 {[%clk 0:01:44]}  Rb8 {[%clk 0:02:05]} 21. Qc7 {[%clk 0:01:40]}  Qd8 {[%clk 0:02:04]} 22. Qxd8 {[%clk 0:01:39]}  Rxd8 {[%clk 0:02:05]} 23. e3 {[%clk 0:01:39]}  Kf6 {[%clk 0:02:04]} 24. Kf1 {[%clk 0:01:33]}  Ke5 {[%clk 0:02:04]} 25. Ke1 {[%clk 0:01:33]}  Kd6 {[%clk 0:02:05]} 26. b4 {[%clk 0:01:32]}  a5 {[%clk 0:02:03]} 27. a3 {[%clk 0:01:12]}  axb4 {[%clk 0:02:03]} 28. axb4 {[%clk 0:01:13]}  Ra8 {[%clk 0:02:03]} 29. Rc2 {[%clk 0:01:05]}  Ra1+ {[%clk 0:01:58]} 30. Kd2 {[%clk 0:01:05]}  Ba6 {[%clk 0:01:59]} 31. Kc3 {[%clk 0:00:59]}  Bb5 {[%clk 0:01:55]} 32. Rb2 {[%clk 0:00:53]}  f5 {[%clk 0:01:52]} 33. Bf3 {[%clk 0:00:53]}  Rc1+ {[%clk 0:01:45]} 34. Kd2 {[%clk 0:00:51]}  Rf1 {[%clk 0:01:45]} 35. Kc3 {[%clk 0:00:52]}  g5 {[%clk 0:01:42]} 36. h3 {[%clk 0:00:50]}  h6 {[%clk 0:01:38]} 37. Kd4 {[%clk 0:00:26]}  Rc1 {[%clk 0:01:34]} 0-1


[Site "https://www.chess.com"]

[Event "Titled Tuesday Blitz August 08 Early 2023"]
[White "Sarana, Alexey"]
[Black "Timmermans, Mark"]
[WhiteFideId "24133795"]
[BlackFideId "1026399"]
[WhiteElo "3073"]
[BlackElo "2726"]
[Result "1-0"]
[Round "8"]
[TimeControl "180+1"]
[Date "2023.08.08"]
[WhiteClock "0:01:52"]
[BlackClock "0:00:43"]
[Board "20"]

1. e4 {[%clk 0:02:54]}  e5 {[%clk 0:03:00]} 2. Nf3 {[%clk 0:02:54]}  Nc6 {[%clk 0:03:00]} 3. Bc4 {[%clk 0:02:55]}  Nf6 {[%clk 0:03:00]} 4. d3 {[%clk 0:02:56]}  Be7 {[%clk 0:03:00]} 5. c3 {[%clk 0:02:56]}  O-O {[%clk 0:03:01]} 6. O-O {[%clk 0:02:57]}  d5 {[%clk 0:03:02]} 7. exd5 {[%clk 0:02:57]}  Nxd5 {[%clk 0:03:03]} 8. a4 {[%clk 0:02:57]}  Bg4 {[%clk 0:03:02]} 9. h3 {[%clk 0:02:56]}  Bh5 {[%clk 0:03:02]} 10. Re1 {[%clk 0:02:56]}  Nb6 {[%clk 0:02:54]} 11. Ba2 {[%clk 0:02:54]}  Bd6 {[%clk 0:02:54]} 12. Qe2 {[%clk 0:02:51]}  a5 {[%clk 0:02:52]} 13. Bb3 {[%clk 0:02:47]}  h6 {[%clk 0:02:49]} 14. Nbd2 {[%clk 0:02:47]}  Kh8 {[%clk 0:02:48]} 15. Ne4 {[%clk 0:02:46]}  f5 {[%clk 0:02:48]} 16. Ng3 {[%clk 0:02:47]}  Bg6 {[%clk 0:02:47]} 17. Bd2 {[%clk 0:02:41]}  Qf6 {[%clk 0:02:47]} 18. Rad1 {[%clk 0:02:39]}  Rae8 {[%clk 0:02:47]} 19. Bc1 {[%clk 0:02:34]}  e4 {[%clk 0:02:46]} 20. dxe4 {[%clk 0:02:34]}  fxe4 {[%clk 0:02:46]} 21. Nh2 {[%clk 0:02:34]}  Bxg3 {[%clk 0:02:33]} 22. fxg3 {[%clk 0:02:34]}  Ne5 {[%clk 0:02:34]} 23. Rf1 {[%clk 0:02:32]}  Qc6 {[%clk 0:02:24]} 24. Rxf8+ {[%clk 0:02:25]}  Rxf8 {[%clk 0:02:25]} 25. Ng4 {[%clk 0:02:17]}  Nd3 {[%clk 0:02:24]} 26. Qe3 {[%clk 0:02:11]}  Nxa4 {[%clk 0:01:56]} 27. Rxd3 {[%clk 0:02:08]}  exd3 {[%clk 0:01:52]} 28. Ne5 {[%clk 0:02:09]}  Qf6 {[%clk 0:01:40]} 29. Bxa4 {[%clk 0:02:01]}  Bh7 {[%clk 0:01:39]} 30. Bb3 {[%clk 0:01:57]}  b5 {[%clk 0:01:24]} 31. Kh2 {[%clk 0:01:56]}  a4 {[%clk 0:00:43]} 32. Bd5 {[%clk 0:01:52]} 1-0


[Site "https://www.chess.com"]

[Event "Titled Tuesday Blitz August 08 Early 2023"]
[White "Zhigalko, Sergei"]
[Black "Volkov, Maksim"]
[WhiteFideId "13502956"]
[BlackFideId "54123070"]
[WhiteElo "2912"]
[BlackElo "2725"]
[Result "1-0"]
[Round "8"]
[TimeControl "180+1"]
[Date "2023.08.08"]
[WhiteClock "0:00:28"]
[BlackClock "0:00:25"]
[Board "22"]

1. e4 {[%clk 0:03:00]}  e6 {[%clk 0:02:58]} 2. d4 {[%clk 0:03:00]}  d5 {[%clk 0:02:59]} 3. e5 {[%clk 0:03:00]}  c5 {[%clk 0:02:58]} 4. c3 {[%clk 0:03:01]}  Qb6 {[%clk 0:02:58]} 5. Nf3 {[%clk 0:03:01]}  Nc6 {[%clk 0:02:58]} 6. Bd3 {[%clk 0:03:00]}  Bd7 {[%clk 0:02:56]} 7. dxc5 {[%clk 0:03:00]}  Bxc5 {[%clk 0:02:53]} 8. O-O {[%clk 0:03:00]}  a5 {[%clk 0:02:52]} 9. Nbd2 {[%clk 0:03:00]}  a4 {[%clk 0:02:45]} 10. b4 {[%clk 0:03:00]}  axb3 {[%clk 0:02:45]} 11. Nxb3 {[%clk 0:03:00]}  Be7 {[%clk 0:02:42]} 12. Re1 {[%clk 0:02:53]}  Nh6 {[%clk 0:02:40]} 13. Rb1 {[%clk 0:02:21]}  Rxa2 {[%clk 0:02:17]} 14. Nbd4 {[%clk 0:02:16]}  Qa7 {[%clk 0:01:57]} 15. Be3 {[%clk 0:02:15]}  Qa8 {[%clk 0:01:50]} 16. Bxh6 {[%clk 0:01:58]}  gxh6 {[%clk 0:01:50]} 17. Qc1 {[%clk 0:01:58]}  Bf8 {[%clk 0:01:39]} 18. Nb5 {[%clk 0:01:55]}  Qa5 {[%clk 0:01:34]} 19. Qf4 {[%clk 0:01:45]}  Na7 {[%clk 0:01:25]} 20. Nd6+ {[%clk 0:01:09]}  Bxd6 {[%clk 0:01:25]} 21. exd6 {[%clk 0:01:10]}  Qc5 {[%clk 0:01:08]} 22. Ne5 {[%clk 0:01:05]}  Rf8 {[%clk 0:01:06]} 23. Rxb7 {[%clk 0:01:03]}  Qxc3 {[%clk 0:00:41]} 24. Rc1 {[%clk 0:00:29]}  Ra1 {[%clk 0:00:39]} 25. Rb8+ {[%clk 0:00:28]}  Nc8 {[%clk 0:00:34]} 26. Rxc8+ {[%clk 0:00:28]}  Bxc8 {[%clk 0:00:25]} 27. Bb5+ {[%clk 0:00:28]} 1-0


[Site "https://www.chess.com"]

[Event "Titled Tuesday Blitz August 08 Early 2023"]
[White "Salinas Herrera, Pablo"]
[Black "Korchmar, Vasiliy"]
[WhiteFideId "3407128"]
[BlackFideId "24131750"]
[WhiteElo "2828"]
[BlackElo "2701"]
[Result "0-1"]
[Round "8"]
[TimeControl "180+1"]
[Date "2023.08.08"]
[WhiteClock "0:01:28"]
[BlackClock "0:01:11"]
[Board "26"]

1. d4 {[%clk 0:03:00]}  d5 {[%clk 0:02:59]} 2. Bf4 {[%clk 0:03:00]}  Nf6 {[%clk 0:02:59]} 3. e3 {[%clk 0:03:01]}  c5 {[%clk 0:03:00]} 4. Nf3 {[%clk 0:02:59]}  Nc6 {[%clk 0:03:00]} 5. Nbd2 {[%clk 0:02:59]}  cxd4 {[%clk 0:03:01]} 6. exd4 {[%clk 0:03:00]}  Qb6 {[%clk 0:03:01]} 7. Nb3 {[%clk 0:03:00]}  Bf5 {[%clk 0:03:01]} 8. c3 {[%clk 0:03:00]}  e6 {[%clk 0:03:01]} 9. Be2 {[%clk 0:02:58]}  Be7 {[%clk 0:03:01]} 10. O-O {[%clk 0:02:58]}  O-O {[%clk 0:03:01]} 11. Re1 {[%clk 0:02:59]}  Rac8 {[%clk 0:03:01]} 12. a4 {[%clk 0:02:58]}  a6 {[%clk 0:03:00]} 13. a5 {[%clk 0:02:58]}  Qd8 {[%clk 0:03:00]} 14. h3 {[%clk 0:02:59]}  Re8 {[%clk 0:02:58]} 15. Bf1 {[%clk 0:02:59]}  h6 {[%clk 0:02:55]} 16. Nfd2 {[%clk 0:02:55]}  Nd7 {[%clk 0:02:49]} 17. Qf3 {[%clk 0:02:54]}  Bg6 {[%clk 0:02:44]} 18. Qg3 {[%clk 0:02:48]}  Bh4 {[%clk 0:02:42]} 19. Qg4 {[%clk 0:02:47]}  e5 {[%clk 0:02:30]} 20. dxe5 {[%clk 0:02:44]}  Ndxe5 {[%clk 0:02:31]} 21. Qd1 {[%clk 0:02:40]}  Qf6 {[%clk 0:02:24]} 22. Be3 {[%clk 0:02:40]}  Nd3 {[%clk 0:02:04]} 23. Bxd3 {[%clk 0:02:40]}  Bxd3 {[%clk 0:02:05]} 24. Nf3 {[%clk 0:02:38]}  Be4 {[%clk 0:01:52]} 25. Nxh4 {[%clk 0:02:39]}  Qxh4 {[%clk 0:01:52]} 26. Nc5 {[%clk 0:02:39]}  Ne5 {[%clk 0:01:46]} 27. b3 {[%clk 0:02:20]}  Rc6 {[%clk 0:01:45]} 28. f4 {[%clk 0:02:12]}  Nf3+ {[%clk 0:01:38]} 29. Kf1 {[%clk 0:01:51]}  Nxe1 {[%clk 0:01:37]} 30. Qxe1 {[%clk 0:01:48]}  Qh5 {[%clk 0:01:24]} 31. b4 {[%clk 0:01:30]}  Rg6 {[%clk 0:01:18]} 32. Ra2 {[%clk 0:01:31]}  Bxg2+ {[%clk 0:01:10]} 33. Rxg2 {[%clk 0:01:28]}  Qxh3 {[%clk 0:01:11]} 0-1


[Site "https://www.chess.com"]

[Event "Titled Tuesday Blitz August 08 Early 2023"]
[White "Skliarov, Viktor"]
[Black "Pakleza, Zbigniew"]
[WhiteFideId "14106736"]
[BlackFideId "1119290"]
[WhiteElo "2701"]
[BlackElo "2827"]
[Result "0-1"]
[Round "8"]
[TimeControl "180+1"]
[Date "2023.08.08"]
[WhiteClock "0:00:00"]
[BlackClock "0:00:04"]
[Board "27"]

1. e4 {[%clk 0:03:00]}  d6 {[%clk 0:03:00]} 2. d4 {[%clk 0:03:00]}  Nf6 {[%clk 0:03:01]} 3. Nc3 {[%clk 0:03:00]}  c6 {[%clk 0:03:01]} 4. f3 {[%clk 0:03:00]}  Qb6 {[%clk 0:03:01]} 5. Nge2 {[%clk 0:02:58]}  e5 {[%clk 0:03:00]} 6. Be3 {[%clk 0:02:58]}  Nbd7 {[%clk 0:03:00]} 7. Qd2 {[%clk 0:02:57]}  Qxb2 {[%clk 0:02:57]} 8. Rb1 {[%clk 0:02:56]}  Qa3 {[%clk 0:02:58]} 9. g4 {[%clk 0:02:48]}  h5 {[%clk 0:02:28]} 10. g5 {[%clk 0:02:46]}  Ng8 {[%clk 0:02:29]} 11. f4 {[%clk 0:02:38]}  Qa5 {[%clk 0:02:13]} 12. fxe5 {[%clk 0:02:23]}  dxe5 {[%clk 0:02:12]} 13. Ng3 {[%clk 0:02:19]}  h4 {[%clk 0:02:05]} 14. Nf5 {[%clk 0:02:19]}  g6 {[%clk 0:02:03]} 15. Nh6 {[%clk 0:02:19]}  Nxh6 {[%clk 0:01:56]} 16. gxh6 {[%clk 0:02:16]}  exd4 {[%clk 0:01:50]} 17. Qxd4 {[%clk 0:02:14]}  f6 {[%clk 0:01:14]} 18. Bc4 {[%clk 0:02:05]}  Bc5 {[%clk 0:00:55]} 19. Qd2 {[%clk 0:01:56]}  Ne5 {[%clk 0:00:55]} 20. Be2 {[%clk 0:01:49]}  Bxe3 {[%clk 0:00:34]} 21. Qxe3 {[%clk 0:01:48]}  g5 {[%clk 0:00:20]} 22. O-O {[%clk 0:01:45]}  Rxh6 {[%clk 0:00:21]} 23. Kh1 {[%clk 0:01:28]}  b6 {[%clk 0:00:18]} 24. Nb5 {[%clk 0:01:15]}  Ke7 {[%clk 0:00:09]} 25. Nd4 {[%clk 0:00:44]}  Bd7 {[%clk 0:00:08]} 26. Nf5+ {[%clk 0:00:42]}  Bxf5 {[%clk 0:00:08]} 27. Rxf5 {[%clk 0:00:43]}  Rd8 {[%clk 0:00:06]} 28. Rbf1 {[%clk 0:00:32]}  Qc5 {[%clk 0:00:07]} 29. Qb3 {[%clk 0:00:15]}  h3 {[%clk 0:00:07]} 30. Bg4 {[%clk 0:00:10]}  Qd4 {[%clk 0:00:06]} 31. Rxf6 {[%clk 0:00:04]}  Qxe4+ {[%clk 0:00:05]} 32. R6f3 {[%clk 0:00:03]}  Nxf3 {[%clk 0:00:02]} 33. Bxf3 {[%clk 0:00:02]}  Qe5 {[%clk 0:00:02]} 34. Qb4+ {[%clk 0:00:02]}  Qc5 {[%clk 0:00:02]} 35. Re1+ {[%clk 0:00:02]}  Kd6 {[%clk 0:00:03]} 36. Qd2+ {[%clk 0:00:02]}  Kc7 {[%clk 0:00:04]} 37. Qe2 {[%clk 0:00:02]}  Rhd6 {[%clk 0:00:03]} 38. Qe7+ {[%clk 0:00:02]}  R8d7 {[%clk 0:00:04]} 39. Qf8 {[%clk 0:00:03]}  Rd2 {[%clk 0:00:03]} 40. Re8 {[%clk 0:00:03]}  Qxf8 {[%clk 0:00:03]} 41. Rxf8 {[%clk 0:00:00]}  Rd1+ {[%clk 0:00:04]} 0-1


[Site "https://www.chess.com"]

[Event "Titled Tuesday Blitz August 08 Early 2023"]
[White "Sokolovsky, Yahli"]
[Black "Fantastic_Power"]
[WhiteFideId "2820242"]
[WhiteElo "2685"]
[BlackElo "2811"]
[Result "1-0"]
[Round "8"]
[TimeControl "180+1"]
[Date "2023.08.08"]
[WhiteClock "0:00:25"]
[BlackClock "0:00:03"]
[Board "28"]

1. b3 {[%clk 0:02:38]}  c5 {[%clk 0:02:57]} 2. Bb2 {[%clk 0:02:39]}  Nc6 {[%clk 0:02:58]} 3. e3 {[%clk 0:02:38]}  d6 {[%clk 0:02:58]} 4. Nf3 {[%clk 0:02:38]}  e5 {[%clk 0:02:58]} 5. d4 {[%clk 0:02:37]}  cxd4 {[%clk 0:02:59]} 6. exd4 {[%clk 0:02:38]}  e4 {[%clk 0:03:00]} 7. Nfd2 {[%clk 0:02:38]}  d5 {[%clk 0:03:01]} 8. c4 {[%clk 0:02:38]}  Nf6 {[%clk 0:03:01]} 9. Nc3 {[%clk 0:02:37]}  Nxd4 {[%clk 0:02:50]} 10. Nxd5 {[%clk 0:02:25]}  Bc5 {[%clk 0:02:13]} 11. b4 {[%clk 0:01:47]}  Bb6 {[%clk 0:01:28]} 12. Nxf6+ {[%clk 0:01:24]}  Qxf6 {[%clk 0:01:26]} 13. c5 {[%clk 0:01:25]}  Bc7 {[%clk 0:01:16]} 14. Nxe4 {[%clk 0:01:08]}  Nf3+ {[%clk 0:01:16]} 15. Qxf3 {[%clk 0:01:06]}  Qxb2 {[%clk 0:01:16]} 16. Bb5+ {[%clk 0:01:06]}  Ke7 {[%clk 0:01:01]} 17. O-O {[%clk 0:01:03]}  Qxb4 {[%clk 0:00:59]} 18. Rab1 {[%clk 0:01:02]}  Qd4 {[%clk 0:00:55]} 19. Rfe1 {[%clk 0:00:46]}  Be6 {[%clk 0:00:53]} 20. Rbd1 {[%clk 0:00:33]}  Qe5 {[%clk 0:00:10]} 21. Ng3 {[%clk 0:00:33]}  Qxc5 {[%clk 0:00:08]} 22. Rd7+ {[%clk 0:00:27]}  Kf8 {[%clk 0:00:08]} 23. Rxe6 {[%clk 0:00:28]}  Qc1+ {[%clk 0:00:03]} 24. Bf1 {[%clk 0:00:28]}  f6 {[%clk 0:00:01]} 25. Rxf6+ {[%clk 0:00:25]}  gxf6 {[%clk 0:00:02]} 26. Qxf6+ {[%clk 0:00:25]}  Ke8 {[%clk 0:00:03]} 27. Qe7# {[%clk 0:00:25]} 1-0


[Site "https://www.chess.com"]

[Event "Titled Tuesday Blitz August 08 Early 2023"]
[White "Fus, Jakub"]
[Black "Klukin, Kirill"]
[WhiteFideId "1193023"]
[BlackFideId "24199273"]
[WhiteElo "2675"]
[BlackElo "2806"]
[Result "1-0"]
[Round "8"]
[TimeControl "180+1"]
[Date "2023.08.08"]
[WhiteClock "0:01:10"]
[BlackClock "0:00:19"]
[Board "29"]

1. d4 {[%clk 0:03:00]}  f5 {[%clk 0:02:58]} 2. Bg5 {[%clk 0:02:59]}  Nf6 {[%clk 0:02:55]} 3. Bxf6 {[%clk 0:02:59]}  exf6 {[%clk 0:02:56]} 4. e3 {[%clk 0:02:59]}  d5 {[%clk 0:02:55]} 5. c4 {[%clk 0:02:58]}  c6 {[%clk 0:02:45]} 6. Nc3 {[%clk 0:02:57]}  Bb4 {[%clk 0:02:41]} 7. Qb3 {[%clk 0:02:56]}  Bxc3+ {[%clk 0:02:39]} 8. bxc3 {[%clk 0:02:52]}  dxc4 {[%clk 0:02:33]} 9. Bxc4 {[%clk 0:02:51]}  Qe7 {[%clk 0:02:33]} 10. Ne2 {[%clk 0:02:45]}  Nd7 {[%clk 0:02:32]} 11. Nf4 {[%clk 0:02:39]}  Nb6 {[%clk 0:02:32]} 12. Be2 {[%clk 0:02:39]}  Qf7 {[%clk 0:02:29]} 13. c4 {[%clk 0:02:30]}  O-O {[%clk 0:02:28]} 14. c5 {[%clk 0:02:21]}  Nd5 {[%clk 0:02:13]} 15. Bc4 {[%clk 0:01:53]}  Rd8 {[%clk 0:01:47]} 16. O-O {[%clk 0:01:50]}  g5 {[%clk 0:01:38]} 17. Nxd5 {[%clk 0:01:43]}  cxd5 {[%clk 0:01:38]} 18. Bd3 {[%clk 0:01:42]}  Be6 {[%clk 0:01:29]} 19. Rab1 {[%clk 0:01:41]}  Rab8 {[%clk 0:01:29]} 20. Qa4 {[%clk 0:01:37]}  b6 {[%clk 0:01:28]} 21. cxb6 {[%clk 0:01:32]}  axb6 {[%clk 0:01:02]} 22. Rfc1 {[%clk 0:01:31]}  Rb7 {[%clk 0:00:57]} 23. Qc6 {[%clk 0:01:22]}  Ra7 {[%clk 0:00:43]} 24. Rxb6 {[%clk 0:01:17]}  Rxa2 {[%clk 0:00:27]} 25. Qxe6 {[%clk 0:01:13]}  Qxe6 {[%clk 0:00:19]} 26. Rxe6 {[%clk 0:01:14]}  Kf7 {[%clk 0:00:19]} 27. Bxf5 {[%clk 0:01:13]}  Rc8 {[%clk 0:00:19]} 28. Rxf6+ {[%clk 0:01:10]} 1-0


[Site "https://www.chess.com"]

[Event "Titled Tuesday Blitz August 08 Early 2023"]
[White "Ashraf, Artin"]
[Black "Weetik, Vjacheslav"]
[WhiteFideId "22514805"]
[BlackFideId "4153472"]
[WhiteElo "2806"]
[BlackElo "2665"]
[Result "1-0"]
[Round "8"]
[TimeControl "180+1"]
[Date "2023.08.08"]
[WhiteClock "0:00:06"]
[BlackClock "0:00:00"]
[Board "30"]

1. e4 {[%clk 0:03:00]}  c6 {[%clk 0:03:00]} 2. Nc3 {[%clk 0:02:58]}  d5 {[%clk 0:03:00]} 3. Qe2 {[%clk 0:02:58]}  dxe4 {[%clk 0:02:52]} 4. Nxe4 {[%clk 0:02:58]}  Bf5 {[%clk 0:02:47]} 5. Nf3 {[%clk 0:02:32]}  e6 {[%clk 0:02:46]} 6. d3 {[%clk 0:02:23]}  c5 {[%clk 0:02:33]} 7. Be3 {[%clk 0:02:18]}  Nc6 {[%clk 0:02:23]} 8. g3 {[%clk 0:02:17]}  Nf6 {[%clk 0:02:14]} 9. Nxf6+ {[%clk 0:02:09]}  Qxf6 {[%clk 0:02:14]} 10. Bg2 {[%clk 0:02:09]}  h6 {[%clk 0:02:09]} 11. O-O {[%clk 0:02:06]}  Be7 {[%clk 0:02:09]} 12. Bf4 {[%clk 0:01:50]}  O-O {[%clk 0:02:06]} 13. Ne5 {[%clk 0:01:43]}  Nd4 {[%clk 0:01:57]} 14. Qd1 {[%clk 0:01:42]}  Rad8 {[%clk 0:01:56]} 15. Nc4 {[%clk 0:01:34]}  b5 {[%clk 0:01:31]} 16. Be5 {[%clk 0:01:33]}  Qg6 {[%clk 0:01:26]} 17. Ne3 {[%clk 0:01:20]}  c4 {[%clk 0:01:24]} 18. c3 {[%clk 0:01:13]}  Bxd3 {[%clk 0:01:11]} 19. Bxd4 {[%clk 0:01:12]}  Bxf1 {[%clk 0:00:54]} 20. Qxf1 {[%clk 0:01:11]}  a6 {[%clk 0:00:54]} 21. a4 {[%clk 0:01:03]}  Bf6 {[%clk 0:00:54]} 22. Bc5 {[%clk 0:01:01]}  Rfe8 {[%clk 0:00:53]} 23. Bc6 {[%clk 0:01:00]}  Bg5 {[%clk 0:00:42]} 24. axb5 {[%clk 0:00:57]}  axb5 {[%clk 0:00:42]} 25. Bxb5 {[%clk 0:00:55]}  Bxe3 {[%clk 0:00:32]} 26. Bxe3 {[%clk 0:00:53]}  Re7 {[%clk 0:00:31]} 27. Bxc4 {[%clk 0:00:52]}  Rb7 {[%clk 0:00:29]} 28. Rd1 {[%clk 0:00:45]}  Rxd1 {[%clk 0:00:25]} 29. Qxd1 {[%clk 0:00:36]}  Rxb2 {[%clk 0:00:26]} 30. Qd8+ {[%clk 0:00:36]}  Kh7 {[%clk 0:00:26]} 31. Bd3 {[%clk 0:00:36]}  f5 {[%clk 0:00:26]} 32. Qd6 {[%clk 0:00:30]}  Qh5 {[%clk 0:00:20]} 33. Qxe6 {[%clk 0:00:25]}  Qd1+ {[%clk 0:00:20]} 34. Bf1 {[%clk 0:00:25]}  Rb1 {[%clk 0:00:17]} 35. Qxf5+ {[%clk 0:00:24]}  Kh8 {[%clk 0:00:17]} 36. Qc8+ {[%clk 0:00:20]}  Kh7 {[%clk 0:00:17]} 37. Qc4 {[%clk 0:00:21]}  Ra1 {[%clk 0:00:11]} 38. h4 {[%clk 0:00:18]}  Qf3 {[%clk 0:00:10]} 39. Qd3+ {[%clk 0:00:16]}  Kh8 {[%clk 0:00:10]} 40. Qd8+ {[%clk 0:00:12]}  Kh7 {[%clk 0:00:10]} 41. Qd3+ {[%clk 0:00:13]}  Kh8 {[%clk 0:00:10]} 42. c4 {[%clk 0:00:14]}  Rd1 {[%clk 0:00:09]} 43. Qc2 {[%clk 0:00:07]}  Re1 {[%clk 0:00:00]} 44. c5 {[%clk 0:00:06]} 1-0


[Site "https://www.chess.com"]